Workbook

Sheet Mitchell Low Sulfur 2022
B1: Mitchell Low Sulfur - 2022 CAPP
C4: Offer | D4: Mine | E4: Quantity | F4: Coal Price | G4: Severance Tax Discount | H4: Coal Price | I4: Severance Tax Rate1 | K4: Transportation | N4: Offered Quality | R4: Quality Adjusted Delivered Pricing
E5: Tons | F5: As Offered | H5: Less Severance Tax | J5: Coal Source - State2 | K5: River / Rail | L5: MP / District | M5: Rate | N5: Btu | O5: lbs. SO2 | P5: Sulfur % | Q5: Ash % | R5: Quality Adj. | S5: Quality Adjusted Delivered Cost | T5: Delivered $/MMBTU | U5: Comments
C7: BAMM INC. | D7: MATTCO | E7: 72000 | F7: 71.58 | G7: =-((0.045+0.03)/2)*F7 -> -2.68425 | H7: =SUM(F7:G7) -> 68.89575 | I7: 0.0375 | J7: WV/KY | K7: Barge | L7: KY Coal Terminal LO, KY | M7: 9.64 | N7: 12000 | O7: 1.67 | P7: 0.01002 | Q7: 0.12 | R7: =+((1-$E$14)*(O7*N7*$E$15)/1000000)+(($E$14*O7*N7*$E$16)/1000000) -> 4.402329244 | S7: =F7+M7+R7 -> 85.62232924 | T7: =S7/(N7/500) -> 3.567597052 | U7: Term 1/1/22-12/31/23; Proposed Purchase. Purchased. 03-00-21-003
C8: Case Coal Sales, LLC | E8: 38400 | F8: 82.5 | G8: =-((0.045)*F8) -> -3.7125 | H8: 78.7875 | I8: 0.045 | J8: KY | K8: Barge | L8: KY Coal Terminal LO, KY | M8: 9.64 | N8: 12000 | O8: 1.7 | P8: 0.0102 | Q8: 0.13 | R8: =+((1-$E$14)*(O8*N8*$E$15)/1000000)+(($E$14*O8*N8*$E$16)/1000000) -> 4.481413003 | S8: 96.621413 | T8: 4.025892208 | U8: Post RFP Negotiations; Fuel Procurement Recommended Purchase. Purchased. 03-00-21-002
C9: River Trading Co | E9: 57600 | F9: 85.17 | G9: =-((0.03)*F9) -> -2.5551 | H9: 82.6149 | I9: 0.03 | J9: WV | K9: Barge | L9: Docks Creek LO,WV | M9: 9.04 | N9: 11800 | O9: 1.8 | P9: =((O9*N9)/20000)/100 -> 0.01062 | Q9: 0.08 | R9: =+((1-$E$14)*(O9*N9*$E$15)/1000000)+(($E$14*O9*N9*$E$16)/1000000) -> 4.665941774 | S9: 98.87594177 | T9: 4.18965855 | U9: Post RFP Negotiations; Fuel Procurement Recommended Purchase. Purchased. 03-00-21-004
C10: Blackhawk Coal Sales, LLC | D10: Blue Creek #1 | E10: 350000 | F10: 54 | G10: -1.62 | H10: 52.38 | I10: 0.03 | J10: WV | K10: Barge | L10: Quincy LO, WV | M10: 9.5 | N10: 12000 | O10: 1.45 | P10: 0.0087 | Q10: 0.1325 | R10: 1.93899336 | S10: =F10+M10+R10 -> 65.43899336 | T10: =S10/(N10/500) -> 2.726624723 | U10: Purchase date of 06/18/2021, Document signed date of 01/19/2022. Purchase 03-00-21-9M1
C11: Alpha Thermal Coal Sales Company | D11: Pax | E11: 59400 | F11: 55.75 | G11: -1.6725 | H11: 54.0775 | I11: 0.03 | J11: WV | K11: Barge | L11: Marmet Dock LO, WV | M11: 10.76 | N11: 12400 | O11: 1.6 | P11: 0.00992 | Q11: 0.1 | R11: 2.210898176 | S11: 68.72089818 | T11: 2.771003959 | U11: Purchase date of 06/18/2021, Document signed date of 10/14/2021. Purchase 03-00-21-9M2
C13: Mitchell
C14: FGD Removal Efficiency | E14: 0.9883
C15: SO2 Allowance Cost | E15: 1.5
C16: Removal Cost $/Ton | E16: 222.26
C22: 1 Severance Tax Rates
C23: Severance tax rate for West Virgina effective July 1, 2021 was 3%
C24: Severance tax rate for Kentucky is 4.5%
C26: 2 Coal Supply agreeements list coal sources, these sources are used to determine the applicable tax rate.
C27: For sources in multiple states it is assumed that half of the coal is supplied from each state.

Sheet Mitchell Low Sulfur 2023
B1: Mitchell Low Sulfur - 2023 CAPP
C4: Offer | D4: Mine | E4: Quantity | F4: Coal Price | G4: Severance Tax Discount | H4: Coal Price | I4: Severance Tax Rate1 | K4: Transportation | N4: Offered Quality | R4: Quality Adjusted Delivered Pricing
E5: Tons | F5: As Offered | H5: Less Severance Tax | J5: Coal Source - State2 | K5: River / Rail | L5: MP / District | M5: Rate | N5: Btu | O5: lbs. SO2 | P5: Sulfur % | Q5: Ash % | R5: Quality Adj. | S5: Quality Adjusted Delivered Cost | T5: Delivered $/MMBTU | U5: Comments
C7: Alpha Thermal Coal Sales Company | D7: Pax and/or Kingston and/or Workman | E7: 205000 | F7: 73 | G7: =-((0.03)*F7) -> -2.19 | H7: =SUM(F7:G7) -> 70.81 | I7: 0.03 | J7: WV | K7: Barge | L7: Riverpoint LO,WV | M7: 8.74 | N7: 12400 | O7: 1.7 | P7: =((O7*N7)/20000)/100 -> 0.01054 | Q7: 0.125 | R7: =+((1-$E$16)*(O7*N7*$E$17)/1000000)+(($E$16*O7*N7*$E$18)/1000000) -> 4.630793437 | S7: =F7+M7+R7 -> 86.37079344 | T7: =S7/(N7/500) -> 3.482693284 | U7: Term: 1/1/23 - 12/31/2024. Post RFP Negotiations; Fuel Procurement Recommended Purchase. Purchased 03-00-21-9M3
C8: BAMM INC. | D8: MATTCO | E8: 72000 | F8: 71.58 | G8: =-((0.045+0.03)/2)*F8 -> -2.68425 | H8: 68.89575 | I8: 0.0375 | J8: WV/KY | K8: Barge | L8: KY Coal Terminal LO, KY | M8: 10.02 | N8: 12000 | O8: 1.67 | P8: 0.01002 | Q8: 0.12 | R8: =+((1-$E$16)*(O8*N8*$E$17)/1000000)+(($E$16*O8*N8*$E$18)/1000000) -> 4.402329244 | S8: 86.00232924 | T8: 3.583430385 | U8: Term 1/1/22-12/31/23; Proposed Purchase. Purchased. 03-00-21-003
C9: Blackhawk Coal Sales, LLC | D9: Blue Creek Mine | E9: 150000 | F9: 75 | G9: =-((0.03)*F9) -> -2.25 | H9: =SUM(F9:G9) -> 72.75 | I9: 0.03 | J9: WV | K9: Barge | L9: Quincy Dock LO, WV | M9: 9.57 | N9: 12000 | O9: 1.45 | P9: =((O9*N9)/20000)/100 -> 0.0087 | Q9: 0.14 | R9: =+((1-$E$16)*(O9*N9*$E$17)/1000000)+(($E$16*O9*N9*$E$18)/1000000) -> 3.822381679 | S9: 88.39238168 | T9: 3.683015903 | U9: Term: 1/1/23-12/31/2026; Post RFP Negotiations; Fuel Procurement Recommended Purchase. Purchased 03-00-21-9M4
C10: Blackhawk Coal Sales, LLC | D10: Blue Creek #1 | E10: 650000 | F10: 55.75 | G10: -1.6725 | H10: =SUM(F10:G10) -> 54.0775 | I10: 0.03 | J10: WV | K10: Barge | L10: Quincy LO, WV | M10: 9.88 | N10: 12000 | O10: 1.45 | P10: 0.0087 | Q10: 0.1325 | R10: 1.93899336 | S10: 67.56899336 | T10: 2.815374723 | U10: Purchase date of 06/18/2021, Document signed date of 01/19/2022. Purchase 03-00-21-9M1
C11: Alpha Thermal Coal Sales Company | D11: Pax | E11: 237600 | F11: 58.25 | G11: -1.7475 | H11: 56.5025 | I11: 0.03 | J11: WV | K11: Barge | L11: Marmet Dock LO, WV | M11: 11.19 | N11: 12400 | O11: 1.6 | P11: 0.00992 | Q11: 0.1 | R11: 2.210898176 | S11: 71.65089818 | T11: 2.88914912 | U11: Purchase date of 06/18/2021, Document signed date of 10/14/2021. Purchase 03-00-21-9M2
C15: Mitchell
C16: FGD Removal Efficiency | E16: 0.9883
C17: SO2 Allowance Cost | E17: 1.5
C18: Removal Cost $/Ton | E18: 222.26
C24: 1 Severance Tax Rates
C25: Severance tax rate for West Virgina effective July 1, 2021 was 3%
C26: Severance tax rate for Kentucky is 4.5%
C28: 2 Coal Supply agreeements list coal sources, these sources are used to determine the applicable tax rate.
C29: For sources in multiple states it is assumed that half of the coal is supplied from each state.

Sheet Mitchell Low Sulfur 2024
B1: Mitchell Low Sulfur - 2024 CAPP
C4: Offer | D4: Mine | E4: Quantity | F4: Coal Price | G4: Severance Tax Discount | H4: Coal Price | I4: Severance Tax Rate1 | K4: Transportation | N4: Offered Quality | R4: Quality Adjusted Delivered Pricing
E5: Tons | F5: As Offered | H5: Less Severance Tax | J5: Coal Source - State2 | K5: River / Rail | L5: MP / District | M5: Rate | N5: Btu | O5: lbs. SO2 | P5: Sulfur % | Q5: Ash % | R5: Quality Adj. | S5: Quality Adjusted Delivered Cost | T5: Delivered $/MMBTU | U5: Comments
C7: Alpha Thermal Coal Sales Company | D7: Pax and/or Kingston and/or Workman | E7: 205000 | F7: 73 | G7: =-(0.03)*F7 -> -2.19 | H7: =SUM(F7:G7) -> 70.81 | I7: 0.03 | J7: WV | K7: Barge | L7: Riverpoint LO,WV | M7: 8.74 | N7: 12400 | O7: 1.7 | P7: =((O7*N7)/20000)/100 -> 0.01054 | Q7: 0.125 | R7: =+((1-$E$12)*(O7*N7*$E$13)/1000000)+(($E$12*O7*N7*$E$14)/1000000) -> 4.630793437 | S7: =F7+M7+R7 -> 86.37079344 | T7: =S7/(N7/500) -> 3.482693284 | U7: Term: 1/1/23 - 12/31/2024. Post RFP Negotiations; Fuel Procurement Recommended Purchase. Purchased 03-00-21-9M3
C8: Blackhawk Coal Sales, LLC | D8: Blue Creek Mine | E8: 150000 | F8: 75 | G8: =-(0.03)*F8 -> -2.25 | H8: 72.75 | I8: 0.03 | J8: WV | K8: Barge | L8: Quincy Dock LO, WV | M8: 9.57 | N8: 12000 | O8: 1.45 | P8: =((O8*N8)/20000)/100 -> 0.0087 | Q8: 0.14 | R8: =+((1-$E$12)*(O8*N8*$E$13)/1000000)+(($E$12*O8*N8*$E$14)/1000000) -> 3.822381679 | S8: =F8+M8+R8 -> 88.39238168 | T8: =S8/(N8/500) -> 3.683015903 | U8: Term: 1/1/23-12/31/2026; Post RFP Negotiations; Fuel Procurement Recommended Purchase. Purchased 03-00-21-9M4
C11: Mitchell
C12: FGD Removal Efficiency | E12: 0.9883
C13: SO2 Allowance Cost | E13: 1.5
C14: Removal Cost $/Ton | E14: 222.26
C21: 1 Severance Tax Rates
C22: Severance tax rate for West Virgina effective July 1, 2021 was 3%
C23: Severance tax rate for Kentucky is 4.5%
C25: 2 Coal Supply agreeements list coal sources, these sources are used to determine the applicable tax rate.
C26: For sources in multiple states it is assumed that half of the coal is supplied from each state.

Sheet Mitchell Low Sulfur 2025
B1: Mitchell Low Sulfur - 2025 CAPP
C4: Offer | D4: Mine | E4: Quantity | F4: Coal Price | G4: Severance Tax Discount | H4: Coal Price | I4: Severance Tax Rate1 | K4: Transportation | N4: Offered Quality | R4: Quality Adjusted Delivered Pricing
E5: Tons | F5: As Offered | H5: Less Severance Tax | J5: Coal Source - State2 | K5: River / Rail | L5: MP / District | M5: Rate | N5: Btu | O5: lbs. SO2 | P5: Sulfur % | Q5: Ash % | R5: Quality Adj. | S5: Quality Adjusted Delivered Cost | T5: Delivered $/MMBTU | U5: Comments
C7: Blackhawk Coal Sales, LLC | D7: Blue Creek Mine | E7: 150000 | F7: 75 | G7: =-(0.03)*F7 -> -2.25 | H7: =SUM(F7:G7) -> 72.75 | I7: 0.03 | J7: WV | K7: Barge | L7: Quincy Dock LO, WV | M7: 9.57 | N7: 12000 | O7: 1.45 | P7: =((O7*N7)/20000)/100 -> 0.0087 | Q7: 0.14 | R7: =+((1-$E$11)*(O7*N7*$E$12)/1000000)+(($E$11*O7*N7*$E$13)/1000000) -> 3.822381679 | S7: =F7+M7+R7 -> 88.39238168 | T7: =S7/(N7/500) -> 3.683015903 | U7: Term: 1/1/23-12/31/2026; Post RFP Negotiations; Fuel Procurement Recommended Purchase. Purchased 03-00-21-9M4
C10: Mitchell
C11: FGD Removal Efficiency | E11: 0.9883
C12: SO2 Allowance Cost | E12: 1.5
C13: Removal Cost $/Ton | E13: 222.26
C21: 1 Severance Tax Rates
C22: Severance tax rate for West Virgina effective July 1, 2021 was 3%
C23: Severance tax rate for Kentucky is 4.5%
C25: 2 Coal Supply agreeements list coal sources, these sources are used to determine the applicable tax rate.
C26: For sources in multiple states it is assumed that half of the coal is supplied from each state.

Sheet Mitchell Low Sulfur 2026
B1: Mitchell Low Sulfur - 2026 CAPP
C4: Offer | D4: Mine | E4: Quantity | F4: Coal Price | G4: Severance Tax Discount | H4: Coal Price | I4: Severance Tax Rate1 | K4: Transportation | N4: Offered Quality | R4: Quality Adjusted Delivered Pricing
E5: Tons | F5: As Offered | H5: Less Severance Tax | J5: Coal Source - State2 | K5: River / Rail | L5: MP / District | M5: Rate | N5: Btu | O5: lbs. SO2 | P5: Sulfur % | Q5: Ash % | R5: Quality Adj. | S5: Quality Adjusted Delivered Cost | T5: Delivered $/MMBTU | U5: Comments
C7: Blackhawk Coal Sales, LLC | D7: Blue Creek Mine | E7: 150000 | F7: 75 | G7: =-(0.03)*F7 -> -2.25 | H7: =SUM(F7:G7) -> 72.75 | I7: 0.03 | J7: WV | K7: Barge | L7: Quincy Dock LO, WV | M7: 9.57 | N7: 12000 | O7: 1.45 | P7: =((O7*N7)/20000)/100 -> 0.0087 | Q7: 0.14 | R7: =+((1-$E$11)*(O7*N7*$E$12)/1000000)+(($E$11*O7*N7*$E$13)/1000000) -> 3.822381679 | S7: =F7+M7+R7 -> 88.39238168 | T7: =S7/(N7/500) -> 3.683015903 | U7: Term: 1/1/23-12/31/2026; Post RFP Negotiations; Fuel Procurement Recommended Purchase. Purchased 03-00-21-9M4
C10: Mitchell
C11: FGD Removal Efficiency | E11: 0.9883
C12: SO2 Allowance Cost | E12: 1.5
C13: Removal Cost $/Ton | E13: 222.26
C20: 1 Severance Tax Rates
C21: Severance tax rate for West Virgina effective July 1, 2021 was 3%
C22: Severance tax rate for Kentucky is 4.5%
C24: 2 Coal Supply agreeements list coal sources, these sources are used to determine the applicable tax rate.
C25: For sources in multiple states it is assumed that half of the coal is supplied from each state.

Sheet Mitchell High Sulfur 2022
B1: Mitchell High Sulfur - 2022 NAPP
C4: Offer | D4: Mine | E4: Quantity | F4: Coal Price | G4: Severance Tax Discount | H4: Coal Price | I4: Severance Tax Rate1 | K4: Transportation | N4: Offered Quality | R4: Quality Adjusted Delivered Pricing
E5: Tons | F5: As Offered | H5: Less Severance Tax | J5: Coal Source - State2 | K5: River / Rail | L5: MP / District | M5: Rate | N5: Btu | O5: lbs. SO2 | P5: Sulfur % | Q5: Ash % | R5: Quality Adj. | S5: Quality Adjusted Delivered Cost | T5: Delivered $/MMBTU | U5: Comments
C7: ACNR Coal Sales, Inc. | D7: Marshall County Mine | E7: 150000 | F7: 80 | G7: =-(0.03)*F7 -> -2.4 | H7: =SUM(F7:G7) -> 77.6 | I7: 0.03 | J7: WV | K7: FOB Belt Mitchell Plant | L7: Ireland Dock LO - Cresap, WV | M7: 0 | N7: 12650 | O7: 5.5 | P7: =(N7*O7)/20000/100 -> 0.0347875 | Q7: 0.1 | R7: =+((1-$E$13)*(O7*N7*$E$14)/1000000)+(($E$13*O7*N7*$E$15)/1000000) -> 15.28403479 | S7: =F7+M7+R7 -> 95.28403479 | T7: =S7/(N7/500) -> 3.766167383 | U7: Term: 1/1/22-12/31/2025; Post RFP Negotiations; Fuel Procurement Recommended Purchase. Contract being finalized.
C12: Mitchell
C13: FGD Removal Efficiency | E13: 0.9883
C14: SO2 Allowance Cost | E14: 1.5
C15: Removal Cost $/Ton | E15: 222.26
C21: 1 Severance Tax Rates
C22: Severance tax rate for West Virgina effective July 1, 2021 was 3%
C23: Severance tax rate for Kentucky is 4.5%
C25: 2 Coal Supply agreeements list coal sources, these sources are used to determine the applicable tax rate.
C26: For sources in multiple states it is assumed that half of the coal is supplied from each state.

Sheet Mitchell High Sulfur 2023
B1: Mitchell High Sulfur - 2023 NAPP
C4: Offfer | D4: Mine | E4: Quantity | F4: Coal Price | G4: Severance Tax Discount | H4: Coal Price | I4: Severance Tax Rate1 | K4: Transportation | N4: Offered Quality | R4: Quality Adjusted Delivered Pricing
E5: Tons | F5: As Offered | H5: Less Severance Tax | J5: Coal Source - State2 | K5: River / Rail | L5: MP / District | M5: Rate | N5: Btu | O5: lbs. SO2 | P5: Sulfur % | Q5: Ash % | R5: Quality Adj. | S5: Quality Adjusted Delivered Cost | T5: Delivered $/MMBTU | U5: Comments
C7: ACNR Coal Sales, Inc. | D7: Marshall County Mine | E7: 500000 | F7: 70 | G7: =-(0.03)*F7 -> -2.1 | H7: =SUM(F7:G7) -> 67.9 | I7: 0.03 | J7: WV | K7: FOB Belt Mitchell Plant | L7: Ireland Dock LO - Cresap, WV | M7: 0 | N7: 12650 | O7: 5.5 | P7: =(N7*O7)/20000/100 -> 0.0347875 | Q7: 0.1 | R7: =+((1-$E$13)*(O7*N7*$E$14)/1000000)+(($E$13*O7*N7*$E$15)/1000000) -> 15.28403479 | S7: =F7+M7+R7 -> 85.28403479 | T7: =S7/(N7/500) -> 3.370910466 | U7: Term: 1/1/22-12/31/2025; Post RFP Negotiations; Fuel Procurement Recommended Purchase. Contract being finalized.
C12: Mitchell
C13: FGD Removal Efficiency | E13: 0.9883
C14: SO2 Allowance Cost | E14: 1.5
C15: Removal Cost $/Ton | E15: 222.26
C21: 1 Severance Tax Rates
C22: Severance tax rate for West Virgina effective July 1, 2021 was 3%
C23: Severance tax rate for Kentucky is 4.5%
C25: 2 Coal Supply agreeements list coal sources, these sources are used to determine the applicable tax rate.
C26: For sources in multiple states it is assumed that half of the coal is supplied from each state.

Sheet Mitchell High Sulfur 2024
B1: Mitchell High Sulfur - 2024 NAPP
C4: Offer | D4: Mine | E4: Quantity | F4: Coal Price | G4: Severance Tax Discount | H4: Coal Price | I4: Severance Tax Rate1 | K4: Transportation | N4: Offered Quality | R4: Quality Adjusted Delivered Pricing
E5: Tons | F5: As Offered | H5: Less Severance Tax | J5: Coal Source - State2 | K5: River / Rail | L5: MP / District | M5: Rate | N5: Btu | O5: lbs. SO2 | P5: Sulfur % | Q5: Ash % | R5: Quality Adj. | S5: Quality Adjusted Delivered Cost | T5: Delivered $/MMBTU | U5: Comments
C7: ACNR Coal Sales, Inc. | D7: Marshall County Mine | E7: 750000 | F7: 70 | G7: =-(0.03)*F7 -> -2.1 | H7: =SUM(F7:G7) -> 67.9 | I7: 0.03 | J7: WV | K7: FOB Belt Mitchell Plant | L7: Ireland Dock LO - Cresap, WV | M7: 0 | N7: 12650 | O7: 5.5 | P7: =(N7*O7)/20000/100 -> 0.0347875 | Q7: 0.1 | R7: =+((1-$E$13)*(O7*N7*$E$14)/1000000)+(($E$13*O7*N7*$E$15)/1000000) -> 15.28403479 | S7: =F7+M7+R7 -> 85.28403479 | T7: =S7/(N7/500) -> 3.370910466 | U7: Term: 1/1/22-12/31/2025; Post RFP Negotiations; Fuel Procurement Recommended Purchase. Contract being finalized.
C12: Mitchell
C13: FGD Removal Efficiency | E13: 0.9883
C14: SO2 Allowance Cost | E14: 1.5
C15: Removal Cost $/Ton | E15: 222.26
C21: 1 Severance Tax Rates
C22: Severance tax rate for West Virgina effective July 1, 2021 was 3%
C23: Severance tax rate for Kentucky is 4.5%
C25: 2 Coal Supply agreeements list coal sources, these sources are used to determine the applicable tax rate.
C26: For sources in multiple states it is assumed that half of the coal is supplied from each state.

Sheet Mitchell High Sulfur 2025
B1: Mitchell High Sulfur - 2025 NAPP
C4: Offer | D4: Mine | E4: Quantity | F4: Coal Price | G4: Severance Tax Discount | H4: Coal Price | I4: Severance Tax Rate1 | K4: Transportation | N4: Offered Quality | R4: Quality Adjusted Delivered Pricing
E5: Tons | F5: As Offered | H5: Less Severance Tax | J5: Coal Source - State2 | K5: River / Rail | L5: MP / District | M5: Rate | N5: Btu | O5: lbs. SO2 | P5: Sulfur % | Q5: Ash % | R5: Quality Adj. | S5: Quality Adjusted Delivered Cost | T5: Delivered $/MMBTU | U5: Comments
C7: ACNR Coal Sales, Inc. | D7: Marshall County Mine | E7: 750000 | F7: 70 | G7: =-(0.03)*F7 -> -2.1 | H7: =SUM(F7:G7) -> 67.9 | I7: 0.03 | J7: WV | K7: FOB Belt Mitchell Plant | L7: Ireland Dock LO - Cresap, WV | M7: 0 | N7: 12650 | O7: 5.5 | P7: =(N7*O7)/20000/100 -> 0.0347875 | Q7: 0.1 | R7: =+((1-$E$13)*(O7*N7*$E$14)/1000000)+(($E$13*O7*N7*$E$15)/1000000) -> 15.28403479 | S7: =F7+M7+R7 -> 85.28403479 | T7: =S7/(N7/500) -> 3.370910466 | U7: Term: 1/1/22-12/31/2025; Post RFP Negotiations; Fuel Procurement Recommended Purchase. Contract being finalized.
C12: Mitchell
C13: FGD Removal Efficiency | E13: 0.9883
C14: SO2 Allowance Cost | E14: 1.5
C15: Removal Cost $/Ton | E15: 222.26
C21: 1 Severance Tax Rates
C22: Severance tax rate for West Virgina effective July 1, 2021 was 3%
C23: Severance tax rate for Kentucky is 4.5%
C25: 2 Coal Supply agreeements list coal sources, these sources are used to determine the applicable tax rate.
C26: For sources in multiple states it is assumed that half of the coal is supplied from each state.
